fUSD/lending_fUSD_20240611
["ID","MTS","AMOUNT","RATE_DAILY","PERIOD"]
[329093286,1718101842513,-500.0,0.00026298,2]
[329093287,1718101842528,-798.46,0.00026298,2]
[329093288,1718101842542,-500.0,0.00026298,2]
[329093289,1718101842553,-4670.88,0.00026298,2]
[329093290,1718101842564,-343.37483193,0.00026298,2]
[329093291,1718101842575,-500.0,0.00026298,2]
[329093292,1718101842588,-1922.59,0.00026299,2]
[329093293,1718101842600,-4167.05,0.00026299,2]
[329093294,1718101842612,-1657.86,0.00026299,2]
[329093295,1718101842626,-68718.41,0.00026299,2]
[329093296,1718101842637,-4115.36,0.00026299,2]
[329093297,1718101842648,-1645.31,0.00026299,2]
[329093298,1718101842660,-1583.56,0.00026299,2]
[329093299,1718101842671,-2049.43,0.00026299,2]
[329093300,1718101842682,-2514.85,0.00026299,2]
[329093301,1718101842694,-2905.67,0.00026299,2]
[329093302,1718101842709,-2147.18,0.00026299,2]
[329093303,1718101842723,-1383.98,0.00026299,2]
[329093304,1718101842734,-891.64,0.00026299,2]
[329093305,1718101842745,-3434.03,0.00026299,2]
[329093306,1718101842757,-2512.91474711,0.00026299,2]
[329093307,1718101842810,-215.10525289,0.00026299,2]
[329093308,1718101842821,-54.43763064,0.00026299,2]
[329093309,1718101842860,-500.0,0.00026298,2]
[329093310,1718101842871,-1362.34236936,0.00026299,2]
[329093311,1718101842883,-6825.15763057,0.00026299,2]
[329093313,1718101843008,-595.17,0.00026161,2]
[329093314,1718101843020,-595.17,0.00026298,2]
[329093315,1718101843031,-1830.02236943,0.00026299,2]
[329093316,1718101843042,-1198.08,0.00026299,2]
[329093317,1718101843053,-2877.24,0.00026299,2]
[329093318,1718101843065,-2332.81,0.00026299,2]
[329093319,1718101843076,-2097.38205164,0.00026299,2]
[329093320,1718101844941,-500.0,0.00026161,2]
[329093321,1718101844953,-500.0,0.00026161,2]
[329093323,1718101844964,-500.0,0.00026298,2]
[329093324,1718101844976,-500.0,0.00026298,2]
[329093325,1718101844987,-3315.625,0.00026299,2]
[329093326,1718101845003,-487.472004,0.00026299,2]
[329093327,1718101845034,-1683.45094436,0.00026299,2]
[329093328,1718101845045,-1164.58,0.00026299,2]
[329093329,1718101845056,-3955.65,0.00026299,2]
[329093330,1718101845068,-4572.87,0.00026299,2]
[329093331,1718101845079,-3409.08,0.00026299,2]
[329093332,1718101845089,-2666.63453643,0.00026299,2]
[329093334,1718101845144,-669.22858176,0.00026299,2]
[329093335,1718101845157,-223.11688181,0.00026299,2]
[329093336,1718101845168,-823.21828836,0.00026299,2]
[329093337,1718101845253,-174.31171164,0.00026299,2]
[329093338,1718101845265,-374.20628836,0.00026299,2]
[329093340,1718101845305,-540.4,0.00026162,2]
[329093341,1718101845316,-1866.73371164,0.00026299,2]
[329093342,1718101845327,-500.0,0.00026299,2]
[329093343,1718101845338,-947.87,0.00026299,2]
[329093344,1718101845349,-215.07926743,0.00026299,2]
[329093345,1718101845363,-2046.19073257,0.00026299,2]
[329093347,1718101845374,-2199.31208233,0.00026299,2]
[329093361,1718101845586,-201.99791767,0.00026299,2]
[329093363,1718101845597,-500.0,0.00026299,2]
[329093365,1718101845608,-540.4,0.00026299,2]
[329093368,1718101845619,-500.0,0.000263,2]
[329093370,1718101845632,-500.0,0.000263,2]
[329093372,1718101845644,-2354.49,0.000263,2]
[329093374,1718101845656,-2341.2,0.000263,2]
[329093376,1718101845666,-3069.08,0.000263,2]
[329093378,1718101845677,-5114.73,0.000263,2]
[329093380,1718101845687,-741.08,0.000263,2]
[329093381,1718101845698,-6992.98,0.000263,2]
[329093382,1718101845717,-1106.62,0.000263,2]
[329093383,1718101845730,-37880.22,0.000263,2]
[329093384,1718101845740,-13509.96,0.000263,2]
[329093386,1718101845750,-3275.09509163,0.000263,2]
[329093388,1718101845763,-6479.18490837,0.000263,2]
[329093389,1718101845776,-2655.61,0.000263,2]
[329093390,1718101845788,-151.0,0.000263,7]
[329093422,1718101846114,-500.0,0.000263,2]
[329093424,1718101846125,-1877.99,0.000263,2]
[329093426,1718101846135,-3233.1,0.000263,2]
[329093428,1718101846146,-1200.491534,0.000263,7]
[329093430,1718101846156,-268.351924,0.000263,7]
[329093432,1718101846166,-151.0,0.000263,7]
[329093434,1718101846176,-151.0,0.000263,7]
[329093436,1718101846186,-1200.491534,0.000263,7]
[329093438,1718101846197,-268.351924,0.000263,7]
[329093440,1718101846207,-151.0,0.000263,7]
[329093442,1718101846218,-500.0,0.000263,2]
[329093444,1718101846228,-151.0,0.000263,7]
[329093446,1718101846238,-7842.78,0.000263,2]
[329093448,1718101846248,-6537.64,0.000263,2]
[329093450,1718101846259,-155.921839,0.000263,7]
[329093452,1718101846271,-445.401318,0.000263,7]
[329093454,1718101846281,-155.921839,0.000263,7]
[329093456,1718101846292,-4889.38,0.000263,2]
[329093458,1718101846302,-445.401318,0.000263,7]
[329093460,1718101846313,-151.0,0.000263,7]
[329093462,1718101846324,-366.5586882,0.000263,2]
[329093464,1718101846336,-3079.21,0.000263,2]
[329093466,1718101846347,-808.281575,0.000263,7]
[329093468,1718101846358,-3688.21,0.000263,2]
[329093470,1718101846368,-1682.79,0.000263,2]
[329093472,1718101846378,-186.77380013,0.000263,7]
[329093477,1718101846422,-621.50777487,0.000263,7]
[329093479,1718101846433,-283.298356,0.000263,7]
[329093481,1718101846443,-2005.808787,0.000263,7]
[329093483,1718101846455,-2005.808787,0.000263,7]
[329093485,1718101846466,-4858.88,0.000263,2]
[329093487,1718101846476,-238.491388,0.000263,7]
[329093489,1718101846487,-6669.85,0.000263,2]
[329093491,1718101846497,-259.024852,0.000263,7]
[329093493,1718101846508,-259.024852,0.000263,7]
[329093495,1718101846520,-238.491388,0.000263,7]
[329093497,1718101846530,-151.0,0.000263,7]
[329093499,1718101846541,-1828.41,0.000263,2]
[329093501,1718101846557,-4613.41,0.000263,2]
[329093503,1718101846567,-5908.1,0.000263,2]
[329093505,1718101846577,-155.582141,0.00026301,7]
[329093507,1718101846590,-154.55621713,0.00026307,2]
[329093509,1718101846600,-152.57378379,0.00026317,2]
[329093511,1718101846611,-315.2683828,0.00026336,2]
[329093513,1718101846623,-628.17889282,0.00026337,2]
[329093515,1718101846634,-154.81295573,0.00026342,2]
[329093517,1718101846645,-153.63169952,0.0002637,2]
[329093519,1718101846656,-196.02869234,0.00026372,2]
[329093521,1718101846667,-275.89647689,0.00026396,2]
[329093523,1718101846677,-172.47,0.00026411,2]
[329093525,1718101846688,-153.63169952,0.00026413,2]
[329093527,1718101846698,-151.21703733,0.00026424,2]
[329093529,1718101846715,-152.55,0.00026426,2]
[329093531,1718101846726,-1992.29,0.00026435,2]
[329093533,1718101846736,-2883.49,0.00026435,2]
[329093535,1718101846747,-1716.77,0.00026435,2]
[329093537,1718101846758,-4651.54,0.00026435,2]
[329093539,1718101846770,-3214.9258066,0.00026435,2]
[329093544,1718101846818,-1413.3541934,0.00026435,2]
[329093546,1718101846830,-1628.53,0.00026435,2]
[329093548,1718101846841,-318.2158066,0.00026435,2]
[329093551,1718101846854,-1162.8541934,0.00026435,2]
[329093553,1718101846865,-457.1458066,0.00026435,2]
[329093555,1718101846879,-5329.6241934,0.00026435,2]
[329093557,1718101846890,-1406.34,0.00026435,2]
[329093559,1718101846901,-613.22283166,0.00026435,2]
[329093561,1718101846913,-500.0,0.00026435,2]
[329093563,1718101846924,-4341.39,0.00026435,2]
[329093565,1718101846935,-500.0,0.00026435,2]
[329093567,1718101846945,-500.0,0.00026435,2]
[329093569,1718101846955,-1286.28,0.00026435,2]
[329093571,1718101846966,-2724.04,0.00026435,2]
[329093573,1718101846977,-659.03,0.00026435,2]
[329093575,1718101846988,-500.0,0.00026435,2]
[329093577,1718101847000,-798.46,0.00026435,2]
[329093579,1718101847012,-500.0,0.00026435,2]
[329093581,1718101847025,-292.66435908,0.00026435,2]
[329093638,1718101847673,-4378.21564092,0.00026435,2]
[329093640,1718101847683,-500.0,0.00026435,2]
[329093642,1718101847696,-500.0,0.00026435,2]
[329093644,1718101847717,-595.17,0.00026435,2]
[329093646,1718101847728,-500.0,0.00026435,2]
[329093648,1718101847738,-500.0,0.00026435,2]
[329093650,1718101847749,-8133.41865707,0.00026436,13]
[329093659,1718101847841,-468.8,0.00026436,13]
[329093691,1718101848176,-115246.7460542,0.00026436,13]
[329093693,1718101848190,-1061.43,0.00026436,13]
[329093700,1718101848254,-457.55470568,0.00026436,13]
[329093702,1718101848266,-1246.58900404,0.00026436,13]
[329093704,1718101848280,-9847.41523241,0.00026436,13]
[329093707,1718101848299,-4866.40702813,0.00026436,13]
[329093709,1718101848312,-3413.85805649,0.00026436,13]
[329093717,1718101848469,-368277.25846586,0.00026436,13]
[329094262,1718102024525,364725.33239208,0.00014,2]
[329094287,1718102742141,-193.18760792,0.00013899,2]
[329094288,1718102742167,-17.50484369,0.000139,2]
[329094291,1718102837106,-193.18760792,0.00013899,2]
[329094292,1718102837131,-315.2683828,0.000139,2]
[329094293,1718102837154,-173.69961228,0.000139,2]
[329094294,1718102837177,-628.17889282,0.000139,2]
[329094295,1718102837201,-332.64543257,0.000139,2]
[329094296,1718102837226,-150.0,0.00013973,2]
[329094297,1718102837253,-152.55,0.0001399,2]
[329094298,1718102837278,-152.55,0.0001399,2]
[329094299,1718102837302,-152.55,0.0001399,2]
[329094300,1718102837329,-152.55,0.0001399,2]
[329094301,1718102837351,-1625.52061624,0.00013998,2]
[329094302,1718102837375,-60.63996184,0.00013998,2]
[329094303,1718102838114,-211.91891769,0.00013998,2]
[329094304,1718102838138,-204.99679615,0.00013999,2]
[329094305,1718102838161,-2559.96948321,0.00013999,2]
[329094306,1718102838187,-49.50357302,0.00013999,2]
[329094307,1718102851303,-455.46182358,0.000134,4]
[329094308,1718102852112,-168.38494077,0.000134,4]
[329094323,1718102964905,210.83,0.00028,90]
[329094329,1718103032204,-176.15323565,0.000134,4]
[329094330,1718103032215,-496.19878435,0.000135,4]
[329094331,1718103032699,-1203.80121565,0.000135,4]
[329094332,1718103032710,-2600.0,0.000136,4]
[329094333,1718103032722,-3400.0,0.000137,5]
[329094334,1718103032733,-300.0,0.00013799,2]
[329094335,1718103032745,-4300.0,0.000138,5]
[329094336,1718103032756,-800.0,0.000139,5]
[329094337,1718103032767,-312.56785618,0.000139,2]
[329094338,1718103032778,-173.69961228,0.000139,2]
[329094340,1718103032789,-2029.88005738,0.000139,2]
[329094341,1718103032799,-418.78592854,0.000139,2]
[329094342,1718103032811,-152.55,0.0001399,2]
[329094343,1718103032822,-261.78589482,0.00013998,2]
[329094344,1718103032832,-3017.04643973,0.00013999,2]
[329094345,1718103032843,-150.0,0.00013999,2]
[329094346,1718103032854,-228363.59201951,0.00014,2]
[329094390,1718103038096,-103249.01638596,0.00014,2]
[329094391,1718103038115,-10743.9162534,0.00014,2]
[329094392,1718103038254,-397.19509123,0.00014,2]
[329094393,1718103038267,-537.22222227,0.00014,2]
[329094394,1718103038280,-539.00383144,0.00014,2]
[329094395,1718103038292,-2829.48636963,0.00014,2]
[329094396,1718103038304,-1273.7907597,0.00014,2]
[329094397,1718103038447,-4389.54872453,0.00014,2]
[329094398,1718103038460,-1498865.0,0.00014,2]
[329094399,1718103038484,-696.419377,0.00014,2]
[329094400,1718103038502,-12133.84786113,0.00014,2]
[329094401,1718103038515,-420.66984206,0.00014,2]
[329094402,1718103038566,-1942.66529345,0.00014,2]
[329094403,1718103038579,-1041.17147669,0.00014,2]
[329094404,1718103038591,-2994.06171994,0.00014,2]
[329094405,1718103038604,-11165.9709147,0.00014,2]
[329094406,1718103038625,-219089.2695615,0.00014,2]
[329094407,1718103038641,-54836.55738799,0.00014,2]
[329094567,1718103040471,-353.52499999,0.00014,2]
[329094573,1718103040537,-3312.04925843,0.00014,2]
[329094586,1718103040667,-255.0,0.00014,2]
[329094597,1718103040769,-375.38893534,0.00014,2]
[329094627,1718103041093,-3597.81457258,0.00014,2]
[329094667,1718103041498,-4364511.79528302,0.00014,2]
[329094669,1718103041509,-790.209,0.00014,2]
[329094671,1718103041520,-323196.14730281,0.00015,2]
[329094673,1718103041531,-312.56785615,0.00015501,2]
[329094675,1718103041541,-312.56785615,0.00017101,2]
[329094677,1718103041552,-255.01,0.00017587,2]
[329094679,1718103041566,-1000.0,0.00018099,2]
[329094681,1718103041577,-312.56785615,0.00018702,2]
[329094683,1718103041587,-238.42,0.00019053,2]
[329094685,1718103041598,-8488.15909426,0.00019396,2]
[329094687,1718103041609,-499.99,0.00019596,2]
[329094689,1718103041620,-803.0,0.00019696,15]
[329094691,1718103041631,-875.0,0.00019696,15]
[329094693,1718103041641,-150.5,0.00019696,15]
[329094695,1718103041651,-803.0,0.00019706,15]
[329094697,1718103041662,-875.0,0.00019706,15]
[329094699,1718103041673,-150.5,0.00019706,15]
[329094701,1718103041684,-150.5,0.00019716,15]
[329094703,1718103041695,-803.0,0.00019716,15]
[329094705,1718103041705,-875.0,0.00019716,15]
[329094707,1718103041716,-150.5,0.00019716,15]
[329094709,1718103041727,-235.62,0.00019716,15]
[329094711,1718103041738,-2029.88005737,0.00019777,2]
[329094713,1718103041749,-418.78592854,0.00019777,2]
[329094715,1718103041759,-8488.15909421,0.00020176,2]
[329094717,1718103041769,-312.56785615,0.00020303,2]
[329094719,1718103041779,-1000.0,0.00020361,2]
[329094721,1718103041789,-8488.15909421,0.00020957,2]
[329094723,1718103041800,-250.0,0.00021085,2]
[329094725,1718103041810,-250.0,0.00021172,2]
[329094727,1718103041821,-250.0,0.00021172,2]
[329094729,1718103041831,-238.42,0.00021316,2]
[329094731,1718103041842,-8488.15909421,0.00021737,2]
[329094733,1718103041852,-312.56785615,0.00021904,2]
[329094735,1718103041863,-221.3,0.00021918,2]
[329094737,1718103041873,-250.0,0.00021918,2]
[329094739,1718103041884,-175.87,0.00021918,2]
[329094741,1718103041894,-150.0,0.00021918,2]
[329094743,1718103041905,-150.0,0.00021918,2]
[329094745,1718103041916,-150.0,0.00021918,2]
[329094747,1718103041926,-150.0,0.00021918,2]
[329094749,1718103041937,-150.0,0.00021918,2]
[329094751,1718103041947,-150.0,0.00021918,2]
[329094753,1718103041958,-2900.0,0.000225,15]
[329094755,1718103041973,-8488.15909421,0.00022517,2]
[329094757,1718103041984,-500.0,0.00022602,2]
[329094759,1718103041997,-1000.0,0.00022623,2]
[329094761,1718103042010,-172.47,0.00023194,2]
[329094763,1718103042021,-8488.15909421,0.00023298,2]
[329094765,1718103042032,-312.56785615,0.00023504,2]
[329094767,1718103042043,-238.42,0.0002358,2]
[329094769,1718103042055,-10403.42129424,0.000236,2]
[329094771,1718103042067,-500.0,0.00023698,2]
[329094773,1718103042078,-959.7384495,0.00024,2]
[329094775,1718103042089,-6333.7856968,0.00024,3]
[329094777,1718103042100,-6538.62912793,0.00024,15]
[329094779,1718103042111,-1000.0,0.00024001,2]
[329094781,1718103042122,-8488.15909421,0.00024078,2]
[329094783,1718103042133,-1039.717681,0.000241,2]
[329094785,1718103042149,-396.17675251,0.0002421,2]
[329094787,1718103042160,-155.61,0.00024384,2]
[329094789,1718103042171,-155.36,0.00024384,2]
[329094791,1718103042182,-150.0,0.00024656,7]
[329094793,1718103042192,-150.0,0.00024656,10]
[329094795,1718103042203,-1125.5,0.00024657,2]
[329094797,1718103042215,-500.0,0.00024657,2]
[329094799,1718103042226,-698.65,0.00024657,2]
[329094801,1718103042236,-829.38,0.00024657,2]
[329094803,1718103042247,-500.0,0.00024657,2]
[329094805,1718103042258,-1012.23,0.00024657,2]
[329094807,1718103042269,-1224.59,0.00024657,2]
[329094809,1718103042280,-325.76103302,0.00024657,2]
[329094811,1718103042291,-500.0,0.00024657,2]
[329094813,1718103042302,-527.09,0.00024657,2]
[329094815,1718103042313,-513.36915846,0.00024657,2]
[329094817,1718103042324,-500.0,0.00024657,2]
[329094819,1718103042335,-500.0,0.00024657,2]
[329094821,1718103042346,-719.45,0.00024657,2]
[329094823,1718103042357,-513.44139218,0.00024657,2]
[329094825,1718103042368,-531.80102812,0.00024657,2]
[329094827,1718103042379,-503.18473231,0.00024657,2]
[329094829,1718103042389,-500.0,0.00024657,2]
[329094831,1718103042400,-1460.05,0.00024657,2]
[329094833,1718103042411,-521.30897343,0.00024657,2]
[329094835,1718103042422,-1289.19,0.00024657,2]
[329094837,1718103042432,-500.0,0.00024657,2]
[329094839,1718103042443,-500.0,0.00024657,2]
[329094841,1718103042453,-500.0,0.00024657,2]
[329094843,1718103042464,-500.0,0.00024657,2]
[329094845,1718103042475,-1187.92,0.00024657,2]
[329094847,1718103042485,-500.0,0.00024657,2]
[329094849,1718103042497,-500.0,0.00024657,2]
[329094851,1718103042508,-691.71,0.00024657,2]
[329094853,1718103042519,-500.0,0.00024657,2]
[329094855,1718103042530,-547.66916667,0.00024657,2]
[329094857,1718103042541,-500.0,0.00024657,2]
[329094859,1718103042552,-1589.91,0.00024657,2]
[329094862,1718103042563,-500.0,0.00024657,2]
[329094864,1718103042574,-546.55564172,0.00024657,2]
[329094868,1718103042585,-569.17,0.00024657,2]
[329094870,1718103042595,-500.0,0.00024657,2]
[329094874,1718103042607,-500.0,0.00024657,2]
[329094877,1718103042618,-526.01858949,0.00024657,2]
[329094880,1718103042630,-500.0,0.00024657,2]
[329094882,1718103042640,-476.90094979,0.00024657,2]
[329094884,1718103042651,-500.0,0.00024657,2]
[329094887,1718103042662,-541.40036075,0.00024657,2]
[329094889,1718103042673,-500.0,0.00024657,2]
[329094890,1718103042684,-384.77078025,0.00024657,2]
[329094893,1718103042695,-1922.15,0.00024657,2]
[329094895,1718103042706,-500.0,0.00024657,2]
[329094897,1718103042718,-500.0,0.00024657,2]
[329094899,1718103042729,-500.0,0.00024657,2]
[329094902,1718103042740,-1030.13,0.00024657,2]
[329094905,1718103042752,-500.0,0.00024657,2]
[329094908,1718103042763,-240.35040116,0.00024657,2]
[329094911,1718103042774,-544.7585553,0.00024657,2]
[329094914,1718103042785,-500.0,0.00024657,2]
[329094917,1718103042796,-500.0,0.00024657,2]
[329094920,1718103042807,-1616.22,0.00024657,2]
[329094923,1718103042818,-500.0,0.00024657,2]
[329094926,1718103042828,-530.13539823,0.00024657,2]
[329094929,1718103042839,-3561.35,0.00024657,2]
[329094932,1718103042850,-500.0,0.00024657,2]
[329094935,1718103042862,-628.19,0.00024657,2]
[329094938,1718103042873,-500.0,0.00024657,2]
[329094941,1718103042883,-500.0,0.00024657,2]
[329094944,1718103042894,-500.0,0.00024657,2]
[329094947,1718103042905,-500.0,0.00024657,2]
[329094950,1718103042915,-523.43825493,0.00024657,2]
[329094953,1718103042926,-500.0,0.00024657,2]
[329094956,1718103042937,-500.0,0.00024657,2]
[329094959,1718103042950,-752.11,0.00024657,2]
[329094962,1718103042961,-519.76468276,0.00024657,2]
[329094965,1718103042974,-655.83,0.00024657,2]
[329094968,1718103042986,-500.0,0.00024657,2]
[329094971,1718103042997,-2058.77,0.00024657,2]
[329094974,1718103043010,-500.0,0.00024657,2]
[329094977,1718103043021,-500.0,0.00024657,2]
[329094980,1718103043035,-500.0,0.00024657,2]
[329094983,1718103043047,-500.0,0.00024657,2]
[329094986,1718103043066,-2260.46,0.00024657,2]
[329094990,1718103043076,-1588.0,0.00024657,2]
[329094993,1718103043087,-500.0,0.00024657,2]
[329094996,1718103043097,-505.19657313,0.00024657,2]
[329094998,1718103043108,-500.0,0.00024657,2]
[329095002,1718103043123,-1174.18,0.00024657,2]
[329095007,1718103043149,-500.0,0.00024657,2]
[329095011,1718103043168,-500.0,0.00024657,2]
[329095015,1718103043184,-500.0,0.00024657,2]
[329095020,1718103043201,-506.65921069,0.00024657,2]
[329095023,1718103043219,-500.0,0.00024657,2]
[329095027,1718103043238,-1694.76,0.00024657,2]
[329095030,1718103043258,-803.31,0.00024657,2]
[329095033,1718103043274,-500.0,0.00024657,2]
[329095037,1718103043290,-500.0,0.00024657,2]
[329095040,1718103043308,-500.0,0.00024657,2]
[329095045,1718103043323,-500.0,0.00024657,2]
[329095048,1718103043337,-995.49,0.00024657,2]
[329095053,1718103043353,-500.0,0.00024657,2]
[329095056,1718103043370,-500.0,0.00024657,2]
[329095061,1718103043387,-500.0,0.00024657,2]
[329095066,1718103043407,-500.0,0.00024657,2]
[329095069,1718103043421,-1020.06,0.00024657,2]
[329095072,1718103043435,-500.0,0.00024657,2]
[329095077,1718103043452,-860.63,0.00024657,2]
[329095080,1718103043468,-500.0,0.00024657,2]
[329095085,1718103043481,-307.69076373,0.00024657,2]
[329095088,1718103043498,-500.0,0.00024657,2]
[329095091,1718103043512,-599.38,0.00024657,2]
[329095095,1718103043525,-940.8,0.00024657,2]
[329095097,1718103043541,-500.0,0.00024657,2]
[329095099,1718103043556,-544.91134917,0.00024657,2]
[329095102,1718103043571,-500.0,0.00024657,2]
[329095105,1718103043590,-1420.19,0.00024657,2]
[329095107,1718103043604,-500.0,0.00024657,2]
[329095109,1718103043618,-2225.45,0.00024657,2]
[329095112,1718103043632,-500.0,0.00024657,2]
[329095114,1718103043646,-500.0,0.00024657,2]
[329095116,1718103043660,-509.20472639,0.00024657,2]
[329095119,1718103043674,-500.0,0.00024657,2]
[329095121,1718103043688,-500.0,0.00024657,2]
[329095123,1718103043702,-509.73603473,0.00024657,2]
[329095126,1718103043716,-500.0,0.00024657,2]
[329095128,1718103043730,-2026.42,0.00024657,2]
[329095130,1718103043745,-500.0,0.00024657,2]
[329095133,1718103043759,-500.0,0.00024657,2]
[329095135,1718103043773,-2906.52,0.00024657,2]
[329095137,1718103043788,-500.0,0.00024657,2]
[329095140,1718103043802,-500.0,0.00024657,2]
[329095142,1718103043816,-500.0,0.00024657,2]
[329095144,1718103043830,-522.97303615,0.00024657,2]
[329095147,1718103043844,-500.0,0.00024657,2]
[329095149,1718103043859,-476.88042446,0.00024657,2]
[329095152,1718103043874,-500.0,0.00024657,2]
[329095154,1718103043888,-500.0,0.00024657,2]
[329095156,1718103043903,-202.240085,0.00024657,7]
[329095159,1718103043917,-500.0,0.00024657,14]
[329095161,1718103043932,-500.0,0.00024657,2]
[329095164,1718103043948,-500.0,0.00024657,2]
[329095166,1718103043963,-508.45805375,0.00024657,2]
[329095168,1718103043978,-500.0,0.00024657,2]
[329095171,1718103043994,-500.0,0.00024657,2]
[329095173,1718103044009,-500.0,0.00024657,2]
[329095175,1718103044023,-500.0,0.00024657,2]
[329095178,1718103044039,-500.0,0.00024657,2]
[329095180,1718103044054,-821.93,0.00024657,2]
[329095182,1718103044070,-510.62630202,0.00024657,2]
[329095185,1718103044083,-500.0,0.00024657,2]
[329095187,1718103044098,-500.0,0.00024657,2]
[329095189,1718103044111,-714.51,0.00024657,2]
[329095192,1718103044125,-502.70008703,0.00024657,2]
[329095194,1718103044139,-500.0,0.00024657,2]
[329095197,1718103044152,-345.00581726,0.00024657,2]
[329095199,1718103044166,-500.0,0.00024657,2]
[329095201,1718103044180,-576.65,0.00024657,2]
[329095204,1718103044201,-500.0,0.00024657,2]
[329095206,1718103044215,-500.0,0.00024657,2]
[329095208,1718103044228,-511.0184951,0.00024657,2]
[329095211,1718103044242,-500.0,0.00024657,2]
[329095213,1718103044255,-697.03,0.00024657,2]
[329095216,1718103044271,-512.01082347,0.00024657,2]
[329095218,1718103044285,-507.26725776,0.00024657,2]
[329095220,1718103044299,-537.40250185,0.00024657,2]
[329095223,1718103044314,-500.0,0.00024657,2]
[329095225,1718103044328,-500.0,0.00024657,2]
[329095227,1718103044342,-500.0,0.00024657,2]
[329095230,1718103044355,-500.0,0.00024657,2]
[329095232,1718103044369,-520.77,0.00024657,2]
[329095234,1718103044383,-519.5977475,0.00024657,2]
[329095237,1718103044397,-500.0,0.00024657,2]
[329095239,1718103044412,-500.0,0.00024657,2]
[329095242,1718103044426,-151.0,0.00024657,7]
[329095244,1718103044440,-500.0,0.00024657,2]
[329095246,1718103044454,-500.0,0.00024657,2]
[329095249,1718103044468,-500.0,0.00024657,2]
[329095251,1718103044482,-644.63,0.00024657,2]
[329095253,1718103044497,-151.0,0.00024657,7]
[329095255,1718103044511,-2402.32,0.00024657,2]
[329095258,1718103044525,-500.0,0.00024657,2]
[329095260,1718103044540,-500.0,0.00024657,2]
[329095262,1718103044555,-500.0,0.00024657,2]
[329095265,1718103044569,-496.52850392,0.00024657,2]
[329095267,1718103044583,-500.0,0.00024657,2]
[329095270,1718103044598,-151.0,0.00024657,7]
[329095272,1718103044612,-500.0,0.00024657,2]
[329095274,1718103044627,-500.0,0.00024657,2]
[329095277,1718103044641,-1518.18,0.00024657,2]
[329095279,1718103044655,-500.0,0.00024657,2]
[329095282,1718103044670,-6631.54,0.00024657,2]
[329095284,1718103044685,-500.0,0.00024657,2]
[329095286,1718103044699,-500.0,0.00024657,2]
[329095289,1718103044714,-500.0,0.00024657,2]
[329095291,1718103044728,-608.64876011,0.00024657,2]
[329095294,1718103044744,-3646.17,0.00024657,2]
[329095296,1718103044758,-534.92286491,0.00024657,2]
[329095298,1718103044773,-506.56269805,0.00024657,2]
[329095301,1718103044787,-500.0,0.00024657,2]
[329095303,1718103044802,-595.03,0.00024657,2]
[329095305,1718103044817,-1046.79,0.00024657,2]
[329095308,1718103044832,-678.28,0.00024657,2]
[329095310,1718103044846,-500.0,0.00024657,2]
[329095313,1718103044860,-500.0,0.00024657,2]
[329095315,1718103044874,-500.0,0.00024657,2]
[329095317,1718103044889,-500.0,0.00024657,2]
[329095320,1718103044903,-500.0,0.00024657,2]
[329095322,1718103044917,-500.0,0.00024657,2]
[329095325,1718103044932,-500.0,0.00024657,2]
[329095327,1718103044946,-500.0,0.00024657,2]
[329095329,1718103044961,-3246.46,0.00024657,2]